fUST/lending_fUST_20250105
["ID","MTS","AMOUNT","RATE_DAILY","PERIOD"]
[347645710,1736009442660,-500.0,0.00019178,2]
[347645711,1736009442672,-500.0,0.00019178,2]
[347645713,1736009442682,-500.0,0.00019178,2]
[347645715,1736009442692,-500.0,0.00019178,2]
[347645717,1736009442701,-500.0,0.00019178,2]
[347645718,1736009442711,-500.0,0.00019178,2]
[347645719,1736009442721,-500.0,0.00019178,2]
[347645720,1736009442731,-500.0,0.00019178,2]
[347645721,1736009442740,-280.93,0.00019178,2]
[347645722,1736009442749,-500.0,0.00019178,2]
[347645723,1736009442759,-500.0,0.00019178,2]
[347645724,1736009442769,-500.0,0.00019178,2]
[347645725,1736009442778,-500.0,0.00019178,2]
[347645726,1736009442788,-507.17243726,0.00019178,2]
[347645727,1736009442798,-2758.85,0.00019178,2]
[347645728,1736009442808,-500.0,0.00019178,2]
[347645729,1736009442817,-500.0,0.00019178,2]
[347645730,1736009442827,-61385.66,0.00019178,2]
[347645731,1736009442837,-500.0,0.00019178,2]
[347645732,1736009442847,-1377.81,0.00019178,2]
[347645733,1736009442857,-902.99,0.00019178,2]
[347645734,1736009442867,-500.0,0.00019178,2]
[347645735,1736009442877,-1092.09,0.00019178,2]
[347645736,1736009442887,-500.0,0.00019178,2]
[347645737,1736009442898,-500.0,0.00019178,2]
[347645738,1736009442907,-3014.05,0.00019178,2]
[347645739,1736009442917,-500.0,0.00019178,2]
[347645740,1736009442926,-500.0,0.00019178,2]
[347645741,1736009442936,-500.0,0.00019178,2]
[347645742,1736009442946,-500.0,0.00019178,2]
[347645743,1736009442956,-654.1,0.00019178,2]
[347645744,1736009442966,-500.0,0.00019178,2]
[347645745,1736009442976,-500.0,0.00019178,2]
[347645746,1736009442985,-618.87,0.00019178,2]
[347645747,1736009442995,-2692.91,0.00019178,2]
[347645748,1736009443006,-500.0,0.00019178,2]
[347645749,1736009443016,-500.0,0.00019178,2]
[347645750,1736009443025,-500.0,0.00019178,2]
[347645751,1736009443035,-500.0,0.00019178,2]
[347645752,1736009443045,-1793.11,0.00019178,2]
[347645753,1736009443055,-6825.69,0.00019178,2]
[347645754,1736009443064,-500.0,0.00019178,2]
[347645755,1736009443074,-500.0,0.00019178,2]
[347645756,1736009443084,-500.0,0.00019178,2]
[347645757,1736009443173,-501.06513719,0.00019178,2]
[347645758,1736009443183,-500.0,0.00019178,2]
[347645759,1736009443193,-500.0,0.00019178,2]
[347645760,1736009443202,-1213.24,0.00019178,2]
[347645761,1736009443212,-500.0,0.00019178,2]
[347645762,1736009443221,-500.0,0.00019178,2]
[347645763,1736009443231,-500.0,0.00019178,2]
[347645764,1736009443240,-1656.97,0.00019178,2]
[347645765,1736009443250,-500.0,0.00019178,2]
[347645766,1736009443259,-500.0,0.00019178,2]
[347645767,1736009443268,-1665.67,0.00019178,2]
[347645768,1736009443278,-500.0,0.00019178,2]
[347645769,1736009443287,-500.0,0.00019178,2]
[347645770,1736009443297,-500.0,0.00019178,2]
[347645771,1736009443306,-500.0,0.00019178,2]
[347645772,1736009443316,-500.0,0.00019178,2]
[347645773,1736009443325,-500.0,0.00019178,2]
[347645774,1736009443335,-500.0,0.00019178,2]
[347645775,1736009443344,-621.48,0.00019178,2]
[347645776,1736009443355,-612.82,0.00019178,2]
[347645777,1736009443364,-500.0,0.00019178,2]
[347645778,1736009443374,-500.0,0.00019178,2]
[347645779,1736009443383,-2206.02,0.00019178,2]
[347645780,1736009443392,-508.4720901,0.00019178,2]
[347645781,1736009443402,-500.0,0.00019178,2]
[347645782,1736009443411,-518.44,0.00019178,2]
[347645783,1736009443421,-786.63,0.00019178,2]
[347645784,1736009443430,-500.0,0.00019178,2]
[347645785,1736009443440,-500.0,0.00019178,2]
[347645786,1736009443449,-166.072688,0.00019178,2]
[347645787,1736009443459,-154.6,0.00019178,2]
[347645788,1736009443468,-302.9394212,0.0001919,2]
[347645789,1736009443477,-1407.87,0.000192,2]
[347645790,1736009443486,-12845.62,0.000192,2]
[347645791,1736009443496,-13374.05,0.000192,2]
[347645792,1736009443506,-3822.65,0.000192,2]
[347645793,1736009443516,-150.0,0.00019257,2]
[347645794,1736009443525,-394.0,0.00019257,2]
[347645795,1736009443535,-1200.0,0.00019277,2]
[347645796,1736009443544,-296.376,0.00019277,2]
[347645797,1736009443553,-11003.74897616,0.00019286,2]
[347645798,1736009443563,-2755.45557056,0.00019314,2]
[347645799,1736009443572,-500.0,0.00019314,2]
[347645800,1736009443582,-302.9394212,0.0001938,2]
[347645801,1736009443595,-2500.0,0.00019446,2]
[347645802,1736009443605,-500.0,0.00019451,2]
[347645803,1736009443614,-2755.45557056,0.00019452,2]
[347645804,1736009443623,-579.12510319,0.00019452,3]
[347645805,1736009443633,-500.0,0.00019452,3]
[347645806,1736009443644,-500.0,0.00019452,3]
[347645807,1736009443653,-500.0,0.00019452,3]
[347645808,1736009443664,-504.79859755,0.00019452,3]
[347645809,1736009443674,-500.0,0.00019452,3]
[347645810,1736009443683,-500.0,0.00019452,3]
[347645811,1736009443693,-500.0,0.00019452,3]
[347645812,1736009443702,-500.0,0.00019452,3]
[347645813,1736009443711,-500.0,0.00019452,3]
[347645814,1736009443721,-500.0,0.00019452,3]
[347645815,1736009443730,-500.0,0.00019452,3]
[347645816,1736009443739,-500.0,0.00019452,3]
[347645817,1736009443748,-500.0,0.00019452,3]
[347645818,1736009443757,-627.54,0.00019452,3]
[347645819,1736009443767,-500.0,0.00019452,3]
[347645820,1736009443776,-500.0,0.00019452,3]
[347645821,1736009443785,-500.0,0.00019452,3]
[347645822,1736009443794,-500.0,0.00019452,3]
[347645823,1736009443804,-500.0,0.00019452,3]
[347645824,1736009443814,-500.0,0.00019452,3]
[347645825,1736009443823,-500.0,0.00019452,2]
[347645826,1736009443833,-538.06,0.00019452,3]
[347645827,1736009443842,-500.0,0.00019452,3]
[347645828,1736009443851,-500.0,0.00019452,3]
[347645829,1736009443861,-500.0,0.00019452,3]
[347645830,1736009443870,-500.0,0.00019452,3]
[347645831,1736009443879,-500.0,0.00019452,3]
[347645832,1736009443889,-500.0,0.00019452,3]
[347645833,1736009443899,-500.0,0.00019452,3]
[347645834,1736009443908,-500.0,0.00019452,3]
[347645835,1736009443917,-500.0,0.00019452,3]
[347645836,1736009443926,-500.0,0.00019452,3]
[347645837,1736009443936,-600.65,0.00019452,3]
[347645838,1736009443945,-500.0,0.00019452,3]
[347645839,1736009443955,-500.0,0.00019452,3]
[347645840,1736009443965,-500.0,0.00019452,3]
[347645841,1736009443974,-500.0,0.00019452,3]
[347645842,1736009443984,-501.6386118,0.00019452,3]
[347645843,1736009443994,-503.86558555,0.00019452,3]
[347645844,1736009444004,-500.0,0.00019452,3]
[347645845,1736009444013,-500.0,0.00019452,3]
[347645846,1736009444022,-500.0,0.00019452,3]
[347645847,1736009444032,-507.92,0.00019452,3]
[347645848,1736009444041,-500.0,0.00019452,3]
[347645849,1736009444050,-500.0,0.00019452,3]
[347645850,1736009444059,-500.0,0.00019452,3]
[347645851,1736009444068,-500.0,0.00019452,3]
[347645852,1736009444078,-500.0,0.00019452,3]
[347645853,1736009444087,-291.78587086,0.00019452,3]
[347645854,1736009444096,-500.0,0.00019452,3]
[347645855,1736009444105,-500.0,0.00019452,3]
[347645856,1736009444114,-500.0,0.00019452,3]
[347645857,1736009444123,-500.0,0.00019452,3]
[347645858,1736009444132,-500.0,0.00019452,3]
[347645859,1736009444143,-383.52264034,0.00019452,3]
[347645860,1736009444152,-500.0,0.00019452,3]
[347645861,1736009444161,-500.0,0.00019452,3]
[347645862,1736009444170,-500.0,0.00019452,3]
[347645863,1736009444180,-367.62426015,0.00019452,3]
[347645864,1736009444189,-500.0,0.00019452,3]
[347645865,1736009444198,-500.0,0.00019452,3]
[347645866,1736009444208,-500.0,0.00019452,3]
[347645867,1736009444217,-500.0,0.00019452,3]
[347645868,1736009444226,-500.0,0.00019452,3]
[347645869,1736009444235,-500.0,0.00019452,3]
[347645870,1736009444245,-500.0,0.00019452,3]
[347645871,1736009444255,-500.0,0.00019452,3]
[347645872,1736009444265,-321.80187423,0.00019452,3]
[347645873,1736009444274,-500.0,0.00019452,3]
[347645874,1736009444283,-607.38,0.00019452,3]
[347645875,1736009444293,-500.0,0.00019452,3]
[347645876,1736009444302,-500.0,0.00019452,3]
[347645877,1736009444311,-500.0,0.00019452,3]
[347645878,1736009444321,-500.0,0.00019452,3]
[347645879,1736009444330,-500.0,0.00019452,3]
[347645880,1736009444339,-500.0,0.00019452,3]
[347645881,1736009444348,-707.71,0.00019452,3]
[347645882,1736009444357,-381.26938864,0.00019452,3]
[347645883,1736009444367,-219.02351462,0.00019452,3]
[347645884,1736009444376,-500.0,0.00019452,3]
[347645885,1736009444386,-500.0,0.00019452,3]
[347645886,1736009444395,-500.0,0.00019452,3]
[347645887,1736009444405,-1239.05,0.00019452,3]
[347645888,1736009444414,-500.0,0.00019452,3]
[347645889,1736009444424,-500.0,0.00019452,3]
[347645890,1736009444433,-500.0,0.00019452,3]
[347645891,1736009444442,-500.0,0.00019452,3]
[347645892,1736009444451,-11886.45,0.00019452,3]
[347645893,1736009444460,-500.0,0.00019452,3]
[347645894,1736009444470,-500.0,0.00019452,3]
[347645895,1736009444480,-500.0,0.00019452,3]
[347645896,1736009444490,-547.48,0.00019452,3]
[347645897,1736009444499,-500.0,0.00019452,3]
[347645898,1736009444509,-500.0,0.00019452,3]
[347645899,1736009444518,-500.0,0.00019452,3]
[347645900,1736009444527,-500.0,0.00019452,3]
[347645901,1736009444536,-500.0,0.00019452,3]
[347645902,1736009444545,-500.0,0.00019452,3]
[347645903,1736009444554,-368.89847625,0.00019452,3]
[347645904,1736009444563,-500.0,0.00019452,3]
[347645905,1736009444573,-500.0,0.00019452,3]
[347645906,1736009444582,-680.51,0.00019452,3]
[347645907,1736009444596,-500.0,0.00019452,3]
[347645908,1736009444683,-504.97260899,0.00019452,3]
[347645909,1736009444693,-500.0,0.00019452,3]
[347645910,1736009444702,-598.36,0.00019452,3]
[347645911,1736009444712,-1838.38,0.00019452,3]
[347645912,1736009444721,-500.0,0.00019452,3]
[347645913,1736009444730,-500.0,0.00019452,3]
[347645914,1736009444739,-500.0,0.00019452,3]
[347645915,1736009444750,-500.0,0.00019452,3]
[347645916,1736009444763,-500.0,0.00019452,3]
[347645917,1736009444773,-500.0,0.00019452,3]
[347645918,1736009444782,-500.0,0.00019452,3]
[347645919,1736009444791,-500.0,0.00019452,3]
[347645920,1736009444801,-500.0,0.00019452,3]
[347645921,1736009444810,-500.0,0.00019452,3]
[347645922,1736009444819,-500.0,0.00019452,3]
[347645923,1736009444828,-500.0,0.00019452,3]
[347645924,1736009444837,-501.75739173,0.00019452,3]
[347645925,1736009444847,-500.0,0.00019452,2]
[347645926,1736009444856,-500.0,0.00019452,3]
[347645927,1736009444865,-500.0,0.00019452,3]
[347645928,1736009444874,-500.0,0.00019452,3]
[347645929,1736009444883,-500.0,0.00019452,3]
[347645930,1736009444892,-354.52678774,0.00019452,3]
[347645931,1736009444901,-188.0,0.00019452,2]
[347645932,1736009444912,-516.69,0.00019452,3]
[347645933,1736009444922,-500.0,0.00019452,3]
[347645934,1736009444931,-500.0,0.00019452,3]
[347645935,1736009444940,-447.33893336,0.00019452,3]
[347645936,1736009444950,-1419.34,0.00019452,3]
[347645937,1736009444959,-500.0,0.00019452,3]
[347645938,1736009444968,-468.10559031,0.00019452,3]
[347645939,1736009444978,-500.0,0.00019452,3]
[347645940,1736009444987,-500.0,0.00019452,3]
[347645941,1736009444996,-500.0,0.00019452,3]
[347645942,1736009445007,-500.0,0.00019452,3]
[347645943,1736009445016,-500.0,0.00019452,3]
[347645944,1736009445026,-500.0,0.00019452,3]
[347645945,1736009445035,-500.0,0.00019452,3]
[347645946,1736009445046,-516.91828985,0.00019452,3]
[347645947,1736009445055,-500.0,0.00019452,3]
[347645948,1736009445064,-500.0,0.00019452,3]
[347645949,1736009445073,-1176.36,0.00019452,3]
[347645950,1736009445083,-1058.64,0.00019452,3]
[347645951,1736009445092,-502.06395716,0.00019452,3]
[347645952,1736009445101,-500.0,0.00019452,3]
[347645953,1736009445111,-1801.24,0.00019452,3]
[347645954,1736009445121,-500.0,0.00019452,3]
[347645955,1736009445130,-500.0,0.00019452,3]
[347645956,1736009445140,-1143.49,0.00019452,3]
[347645957,1736009445150,-890.49,0.00019452,3]
[347645958,1736009445159,-500.0,0.00019452,3]
[347645959,1736009445170,-500.0,0.00019452,3]
[347645960,1736009445180,-500.0,0.00019452,3]
[347645961,1736009445189,-500.0,0.00019452,3]
[347645962,1736009445201,-500.0,0.00019452,3]
[347645963,1736009445211,-500.0,0.00019452,3]
[347645964,1736009445222,-500.0,0.00019452,3]
[347645965,1736009445231,-500.0,0.00019452,3]
[347645966,1736009445242,-643.83,0.00019452,3]
[347645967,1736009445252,-500.0,0.00019452,3]
[347645969,1736009445261,-1626.14,0.00019452,3]
[347645970,1736009445270,-500.0,0.00019452,3]
[347645971,1736009445279,-751.44,0.00019452,3]
[347645972,1736009445288,-500.0,0.00019452,3]
[347645973,1736009445297,-500.0,0.00019452,3]
[347645974,1736009445307,-997.09,0.00019452,3]
[347645975,1736009445316,-500.0,0.00019452,3]
[347645976,1736009445326,-1181.89,0.00019452,3]
[347645977,1736009445335,-502.07183632,0.00019452,3]
[347645978,1736009445344,-500.0,0.00019452,3]
[347645979,1736009445353,-501.80206379,0.00019452,3]
[347645980,1736009445362,-501.78865278,0.00019452,3]
[347645981,1736009445372,-500.0,0.00019452,3]
[347645982,1736009445381,-500.0,0.00019452,3]
[347645983,1736009445390,-500.0,0.00019452,3]
[347645984,1736009445400,-500.0,0.00019452,3]
[347645986,1736009445409,-547.4,0.00019452,3]
[347645987,1736009445417,-500.0,0.00019452,3]
[347645989,1736009445427,-500.0,0.00019452,3]
[347645991,1736009445436,-500.0,0.00019452,3]
[347645992,1736009445445,-500.0,0.00019452,3]
[347645993,1736009445455,-544.84,0.00019452,3]
[347645994,1736009445464,-500.0,0.00019452,3]
[347645995,1736009445473,-500.0,0.00019452,3]
[347645996,1736009445482,-500.0,0.00019452,3]
[347645997,1736009445491,-500.0,0.00019452,3]
[347645998,1736009445501,-500.0,0.00019452,3]
[347645999,1736009445510,-998.72,0.00019452,3]
[347646000,1736009445519,-500.0,0.00019452,3]
[347646001,1736009445529,-500.0,0.00019452,3]
[347646003,1736009445538,-1188.16,0.00019452,3]
[347646004,1736009445547,-500.0,0.00019452,3]
[347646005,1736009445557,-500.0,0.00019452,3]
[347646006,1736009445567,-500.0,0.00019452,3]
[347646007,1736009445576,-552.59601476,0.00019452,3]
[347646008,1736009445585,-982.66,0.00019452,3]
[347646009,1736009445598,-500.0,0.00019452,3]
[347646010,1736009445608,-500.0,0.00019452,3]
[347646011,1736009445618,-1242.19,0.00019452,3]
[347646012,1736009445628,-500.0,0.00019452,3]
[347646013,1736009445638,-500.0,0.00019452,3]
[347646014,1736009445647,-976.94,0.00019452,3]
[347646015,1736009445657,-500.0,0.00019452,3]
[347646016,1736009445666,-500.0,0.00019452,3]
[347646017,1736009445676,-500.0,0.00019452,3]
[347646018,1736009445685,-500.0,0.00019452,3]
[347646019,1736009445694,-500.0,0.00019452,3]
[347646020,1736009445703,-500.0,0.00019452,3]
[347646021,1736009445712,-500.0,0.00019452,3]
[347646022,1736009445721,-500.0,0.00019452,3]
[347646023,1736009445730,-500.0,0.00019452,3]
[347646024,1736009445739,-500.0,0.00019452,3]
[347646025,1736009445749,-500.0,0.00019452,3]
[347646026,1736009445759,-500.0,0.00019452,3]
[347646027,1736009445768,-500.0,0.00019452,3]
[347646028,1736009445777,-500.0,0.00019452,3]
[347646029,1736009445786,-199.6657811,0.00019452,3]
[347646030,1736009445795,-500.0,0.00019452,3]
[347646031,1736009445805,-500.0,0.00019452,3]
[347646032,1736009445814,-500.0,0.00019452,3]
[347646033,1736009445823,-500.0,0.00019452,3]
[347646034,1736009445832,-1891.14,0.00019452,3]
[347646035,1736009445842,-500.0,0.00019452,3]
[347646036,1736009445851,-500.0,0.00019452,3]
[347646037,1736009445860,-500.0,0.00019452,3]
[347646038,1736009445869,-500.0,0.00019452,3]
[347646039,1736009445879,-500.0,0.00019452,3]
[347646040,1736009445889,-561.97,0.00019452,3]
[347646041,1736009445898,-500.0,0.00019452,3]
[347646042,1736009445908,-500.0,0.00019452,3]
[347646043,1736009445917,-1028.88,0.00019452,3]
[347646044,1736009445926,-720.72,0.00019452,3]
[347646045,1736009445936,-500.0,0.00019452,3]
[347646046,1736009445945,-500.0,0.00019452,3]
[347646047,1736009445955,-584.42624184,0.00019452,3]
[347646048,1736009445965,-500.0,0.00019452,3]
[347646049,1736009445974,-500.0,0.00019452,3]
[347646050,1736009445983,-500.0,0.00019452,3]
[347646051,1736009446066,-1498.86,0.00019452,3]
[347646052,1736009446077,-500.0,0.00019452,3]
[347646053,1736009446087,-205.07514219,0.00019452,3]
[347646054,1736009446097,-723.5,0.00019452,3]
[347646055,1736009446106,-500.0,0.00019452,3]
[347646056,1736009446118,-500.0,0.00019452,3]
[347646057,1736009446128,-500.0,0.00019452,3]
[347646058,1736009446138,-1135.62,0.00019452,3]
[347646059,1736009446148,-580.16,0.00019452,3]
[347646060,1736009446158,-500.0,0.00019452,3]
[347646061,1736009446169,-500.0,0.00019452,3]
[347646062,1736009446178,-500.0,0.00019452,3]
[347646063,1736009446188,-500.0,0.00019452,3]
[347646064,1736009446197,-500.0,0.00019452,3]
[347646065,1736009446208,-500.0,0.00019452,3]
[347646066,1736009446218,-500.0,0.00019452,3]
[347646067,1736009446228,-1006.63,0.00019452,3]
[347646068,1736009446238,-500.0,0.00019452,3]
[347646069,1736009446249,-500.0,0.00019452,3]
[347646070,1736009446259,-500.0,0.00019452,3]
[347646071,1736009446268,-500.0,0.00019452,3]
[347646072,1736009446278,-520.6055607,0.00019452,3]
[347646073,1736009446287,-500.0,0.00019452,3]
[347646074,1736009446297,-500.0,0.00019452,3]
[347646075,1736009446307,-500.0,0.00019452,3]
[347646076,1736009446318,-500.0,0.00019452,3]
[347646077,1736009446327,-500.0,0.00019452,3]
[347646078,1736009446337,-500.0,0.00019452,3]
[347646079,1736009446347,-500.0,0.00019452,3]
[347646080,1736009446358,-500.0,0.00019452,3]
[347646081,1736009446368,-500.0,0.00019452,3]
[347646082,1736009446378,-500.0,0.00019452,3]
[347646083,1736009446388,-500.0,0.00019452,3]
[347646084,1736009446397,-500.0,0.00019452,3]
[347646085,1736009446409,-502.01128024,0.00019452,3]
[347646086,1736009446419,-13229.23,0.00019452,3]
[347646087,1736009446430,-502.71705809,0.00019452,2]
[347646088,1736009446442,-500.0,0.00019452,3]
[347646089,1736009446451,-502.05801476,0.00019452,3]
[347646090,1736009446460,-500.0,0.00019452,3]
[347646091,1736009446469,-1009.83,0.00019452,3]
[347646092,1736009446480,-442.9865349,0.00019452,3]
[347646093,1736009446490,-500.0,0.00019452,3]
[347646094,1736009446502,-2153.32,0.00019452,3]
[347646095,1736009446511,-500.0,0.00019452,3]
[347646096,1736009446520,-1078.01,0.00019452,3]
[347646097,1736009446530,-500.0,0.00019452,3]
[347646098,1736009446541,-500.0,0.00019452,3]
[347646099,1736009446551,-7167.99,0.00019452,3]
[347646100,1736009446560,-500.0,0.00019452,3]
[347646101,1736009446570,-500.0,0.00019452,3]
[347646102,1736009446579,-500.0,0.00019452,3]
[347646103,1736009446591,-500.0,0.00019452,3]
[347646104,1736009446601,-591.96,0.00019452,3]
[347646105,1736009446610,-500.0,0.00019452,3]
[347646106,1736009446620,-500.0,0.00019452,3]
[347646107,1736009446631,-500.0,0.00019452,3]
[347646108,1736009446640,-500.92148755,0.00019452,3]
[347646109,1736009446649,-500.0,0.00019452,3]
[347646110,1736009446658,-573.19178627,0.00019452,3]
[347646111,1736009446668,-556.09,0.00019452,3]
[347646112,1736009446678,-500.0,0.00019452,3]
[347646113,1736009446687,-2421.84,0.00019452,2]
[347646114,1736009446696,-500.0,0.00019452,3]
[347646115,1736009446705,-500.0,0.00019452,3]
[347646116,1736009446714,-497.09399705,0.00019452,3]
[347646117,1736009446723,-2242.32,0.00019452,3]
[347646118,1736009446733,-572.04,0.00019452,3]
[347646119,1736009446742,-500.0,0.00019452,3]
[347646120,1736009446752,-500.0,0.00019452,3]
[347646121,1736009446761,-500.0,0.00019452,3]
[347646122,1736009446770,-580.52,0.00019452,3]
[347646123,1736009446780,-500.0,0.00019452,3]
[347646124,1736009446790,-500.0,0.00019452,3]
[347646125,1736009446799,-200.0,0.00019452,3]
[347646126,1736009446810,-500.0,0.00019452,3]
[347646127,1736009446819,-936.1,0.00019452,3]
[347646128,1736009446830,-500.0,0.00019452,3]
[347646129,1736009446839,-509.87657925,0.00019452,3]
[347646130,1736009446849,-2223.37,0.00019452,3]
[347646131,1736009446859,-500.0,0.00019452,3]
[347646132,1736009446868,-500.0,0.00019452,3]
[347646133,1736009446878,-500.0,0.00019452,3]
[347646134,1736009446887,-500.0,0.00019452,3]
[347646135,1736009446897,-500.0,0.00019452,3]
[347646136,1736009446906,-500.0,0.00019452,3]
[347646137,1736009446916,-500.0,0.00019452,3]
[347646138,1736009446925,-1087.77,0.00019452,3]
[347646139,1736009446934,-500.0,0.00019452,3]
[347646140,1736009446944,-500.0,0.00019452,3]
[347646141,1736009446953,-500.0,0.00019452,3]
[347646142,1736009446962,-500.0,0.00019452,3]
[347646143,1736009446971,-519.75,0.00019452,3]
[347646144,1736009446981,-500.0,0.00019452,3]
[347646145,1736009446990,-379.67317922,0.00019452,3]
[347646146,1736009446999,-500.0,0.00019452,3]
[347646147,1736009447009,-500.0,0.00019452,3]
[347646148,1736009447018,-3948.36,0.00019452,3]
[347646149,1736009447027,-501.18025801,0.00019452,3]
[347646150,1736009447036,-2657.97,0.00019452,3]
[347646151,1736009447045,-500.0,0.00019452,3]
[347646152,1736009447055,-500.0,0.00019452,3]
[347646153,1736009447064,-500.0,0.00019452,3]
[347646154,1736009447073,-649.96,0.00019452,3]
[347646155,1736009447082,-1000.0,0.00019452,3]
[347646156,1736009447091,-500.4513721,0.00019452,3]
[347646157,1736009447100,-500.0,0.00019452,3]
[347646158,1736009447110,-2389.19,0.00019452,3]
[347646159,1736009447119,-1425.25,0.00019452,3]
[347646160,1736009447128,-500.0,0.00019452,3]
[347646161,1736009447137,-500.0,0.00019452,3]
[347646162,1736009447146,-500.0,0.00019452,3]
[347646163,1736009447155,-500.0,0.00019452,3]
[347646164,1736009447165,-1538.78,0.00019452,3]
[347646165,1736009447174,-502.38232748,0.00019452,3]
[347646166,1736009447183,-2026.65,0.00019452,3]
[347646167,1736009447192,-500.0,0.00019452,3]
[347646168,1736009447201,-500.0,0.00019452,3]
[347646169,1736009447211,-509.81683209,0.00019452,3]
[347646170,1736009447219,-500.0,0.00019452,3]
[347646171,1736009447228,-500.0,0.00019452,3]
[347646172,1736009447238,-500.0,0.00019452,3]
[347646173,1736009447249,-1052.18,0.00019452,3]
[347646174,1736009447258,-953.93,0.00019452,3]
[347646175,1736009447267,-548.43,0.00019452,3]
[347646176,1736009447279,-500.0,0.00019452,3]
[347646177,1736009447288,-760.11,0.00019452,3]
[347646178,1736009447297,-500.0,0.00019452,3]
[347646179,1736009447380,-1383.69,0.00019452,3]
[347646180,1736009447390,-500.0,0.00019452,3]
[347646181,1736009447400,-619.21,0.00019452,3]
[347646182,1736009447411,-500.0,0.00019452,3]
[347646183,1736009447420,-2033.27,0.00019452,3]
[347646184,1736009447429,-500.0,0.00019452,3]
[347646185,1736009447440,-500.0,0.00019452,3]
[347646186,1736009447450,-500.0,0.00019452,2]
[347646187,1736009447461,-500.0,0.00019452,3]
[347646188,1736009447472,-500.0,0.00019452,3]
[347646189,1736009447481,-503.04843903,0.00019452,3]
[347646190,1736009447491,-4269.31,0.00019452,3]
[347646191,1736009447500,-500.0,0.00019452,3]
[347646192,1736009447510,-503.06411982,0.00019452,3]
[347646193,1736009447519,-1203.18,0.00019452,3]
[347646194,1736009447529,-500.0,0.00019452,3]
[347646195,1736009447538,-500.0,0.00019452,3]
[347646196,1736009447547,-864.29,0.00019452,3]
[347646197,1736009447557,-503.77095047,0.00019452,3]
[347646198,1736009447567,-214.72900225,0.00019452,3]
[347646199,1736009447577,-500.0,0.00019452,3]
[347646200,1736009447587,-4275.07,0.00019452,3]
[347646201,1736009447599,-500.0,0.00019452,3]
[347646202,1736009447608,-500.0,0.00019452,3]
[347646203,1736009447618,-500.0,0.00019452,3]
[347646204,1736009447631,-500.0,0.00019452,3]
[347646205,1736009447640,-485.62157746,0.00019452,3]
[347646206,1736009447651,-500.0,0.00019452,3]
[347646207,1736009447660,-268.74473366,0.00019452,3]
[347646208,1736009447671,-500.0,0.00019452,3]
[347646209,1736009447681,-500.0,0.00019452,3]
[347646210,1736009447690,-579.26,0.00019452,3]
[347646211,1736009447701,-210.65145455,0.00019452,3]
[347646212,1736009447710,-500.0,0.00019452,3]
[347646213,1736009447720,-4666.96,0.00019452,3]
[347646214,1736009447729,-500.0,0.00019452,3]
[347646215,1736009447739,-500.0,0.00019452,3]
[347646216,1736009447748,-500.0,0.00019452,3]
[347646217,1736009447759,-500.0,0.00019452,3]